Workbook

Sheet Cover page

Sheet Summary
B1: Name | C1: Net Present Cost ($m, AUD 2017) | D1: Preferred option (least cost) | E1: Increased cost compared to Preferred option
A2: Option 1 | B2: Greenfield replacement | D2: =IF(C2=MIN($C$2:$C$3),"Yes","No") -> Yes
A3: Option 3 | B3: AER solution plus future SB replacement | D3: =IF(C3=MIN($C$2:$C$3),"Yes","No") -> Yes
A6: Preferred year of replacement based on Value of Energy at Risk analysis
A7: 2019
A9: Proposed replacement year based on resource and other implementaiton constraints and accepting risk
A10: 2021
A13: Model Legend (DCF Analysis)
A14: formulas in black text - use inputs from same sheet
A15: Green text means link to other sheet
A16: Blue text indicates it is an input for the data table scenario analysis
A17: Red text indicates hard coded values (Base case)
A18: Black highlight indicates cells which have been made confidential for the public version
A21: Model notes
A22: All values in real $'m 2018 AUD
A23: CPI not included, WACC excludes CPI

Sheet DCF Analysis
C13: DCF Analysis

Sheet Options - Base Case
B2: Energy at Risk
E5: =Const!E15 -> Base year (year commencing) | F5: =Const!F15 -> 2017-07-01 | G5: =Const!G15 -> date | K5: =DATE(YEAR($F5)+K6,MONTH($F5),DAY($F5)) -> 2017-07-01 | L5: =DATE(YEAR($F5)+L6,MONTH($F5),DAY($F5)) -> 2018-07-01 | M5: 2019-07-01 | N5: 2020-07-01 | O5: 2021-07-01 | P5: 2022-07-01 | Q5: 2023-07-01 | R5: 2024-07-01 | S5: 2025-07-01 | T5: 2026-07-01 | U5: 2027-07-01 | V5: 2028-07-01 | W5: 2029-07-01 | X5: 2030-07-01 | Y5: 2031-07-01 | Z5: 2032-07-01 | AA5: 2033-07-01 | AB5: 2034-07-01 | AC5: 2035-07-01 | AD5: 2036-07-01 | AE5: 2037-07-01 | AF5: 2038-07-01 | AG5: 2039-07-01 | AH5: 2040-07-01 | AI5: 2041-07-01 | AJ5: 2042-07-01 | AK5: 2043-07-01 | AL5: 2044-07-01 | AM5: 2045-07-01 | AN5: 2046-07-01 | AO5: 2047-07-01 | AP5: 2048-07-01
E6: Period number | K6: 0 | L6: =K6+1 -> 1 | M6: =L6+1 -> 2 | N6: 3 | O6: 4 | P6: 5 | Q6: 6 | R6: 7 | S6: 8 | T6: 9 | U6: 10 | V6: 11 | W6: 12 | X6: 13 | Y6: 14 | Z6: 15 | AA6: 16 | AB6: 17 | AC6: 18 | AD6: 19 | AE6: 20 | AF6: 21 | AG6: 22 | AH6: 23 | AI6: 24 | AJ6: 25 | AK6: 26 | AL6: 27 | AM6: 28 | AN6: 29 | AO6: 30 | AP6: 31
E7: =Const!E16 -> Valuation period | F7: =Const!F16 -> 30 | G7: =Const!G16 -> years | K7: =IF(K6<=$F$7,1,0) -> 1 | L7: =IF(L6<=$F$7,1,0) -> 1 | M7: 1 | N7: 1 | O7: 1 | P7: 1 | Q7: 1 | R7: 1 | S7: 1 | T7: 1 | U7: 1 | V7: 1 | W7: 1 | X7: 1 | Y7: 1 | Z7: 1 | AA7: 1 | AB7: 1 | AC7: 1 | AD7: 1 | AE7: 1 | AF7: 1 | AG7: 1 | AH7: 1 | AI7: 1 | AJ7: 1 | AK7: 1 | AL7: 1 | AM7: 1 | AN7: 1 | AO7: 1 | AP7: 0
E8: =Const!E17 -> discount rate | F8: =Const!F17 -> 0.0624 | G8: =Const!G17 -> % | K8: =(1/(1+$F$8)^(K6))*K7 -> 1 | L8: =(1/(1+$F$8)^(L6))*L7 -> 0.9412650602 | M8: 0.8859799136 | N8: 0.8339419368 | O8: 0.7849604074 | P8: 0.7388558051 | Q8: 0.6954591539 | R8: 0.6546114024 | S8: 0.6161628411 | T8: 0.5799725538 | U8: 0.5459079008 | V8: 0.5138440331 | W8: 0.4836634348 | X8: 0.4552554921 | Y8: 0.4285160882 | Z8: 0.4033472215 | AA8: 0.3796566468 | AB8: 0.3573575365 | AC8: 0.3363681631 | AD8: 0.3166115993 | AE8: 0.2980154361 | AF8: 0.2805115174 | AG8: 0.2640356903 | AH8: 0.24852757 | AI8: 0.2339303181 | AJ8: 0.220190435 | AK8: 0.207257563 | AL8: 0.1950843026 | AM8: 0.1836260378 | AN8: 0.1728407735 | AO8: 0.1626889811 | AP8: 0
E10: Description | F10: Constant | G10: Unit | H10: Comment | I10: Total
B14: Option 1 - Replace ZSS with greenfield construction
C16: Replacement year of transfomers based on E@R
E17: Remediation year | F17: 2021 | G17: year
E18: Remediation 'in-service' flag
D20: Expenditure schedule
E21: Transformer replacement cost | G21: $'M AUD 2018
E22: =Const!$E$52 -> Year 0 | F22: =Const!$F$52 -> 0
E23: =Const!$E$53 -> Year -1 | F23: =Const!$F$53 -> 0
E24: =Const!$E$54 -> Year -2 | F24: =Const!$F$54 -> 0
D26: Substation operational expenditure
E27: Opex flag
E28: Transformer opex - current
E29: Transformer opex - post replacement
E30: Swichboard opex - current
E31: Swichboard opex - post replacement
E33: Total (NPC of project) | G33: A$m FY17 Real
B35: Option 2 - AER solution plus future switchboard replacement
C37: Replacement year of transfomers based on E@R
E38: Remediation year | F38: 2021 | G38: year
E39: Remediation 'in-service' flag
D41: Expenditure schedule
E42: Transformer replacement cost | G42: $'M AUD 2018
E43: =Const!$E$52 -> Year 0 | F43: =Const!$F$52 -> 0
E44: =Const!$E$53 -> Year -1 | F44: =Const!$F$53 -> 0
E45: =Const!$E$54 -> Year -2 | F45: =Const!$F$54 -> 0
C47: Replacement year of switchboard based on engineering assessment
E48: Remediation year | G48: year
E49: Remediation 'in-service' flag
D51: Expenditure schedule
E52: recoverable protection and control asset value (relay value, loss of labour and control wiring)
E53: depresiated value | F53: 20
E54: switchboard replacement cost | G54: $'M AUD 2018
E55: =Const!$E$52 -> Year 0 | F55: =Const!$F$52 -> 0
E56: =Const!$E$53 -> Year -1 | F56: =Const!$F$53 -> 0
E57: depresiated value | F57: 1
D59: Substaiton operational expenditure
E60: Transformer opex flag
E61: Transformer opex - current
E62: Transformer opex - post replacement
E64: Switchboard opex flag
E65: Swichboard opex - current
E66: Swichboard opex - post replacement
E68: Total (NPC of project) | G68: A$m FY17 Real
B72: END

Sheet Options - Scenario
B2: Energy at Risk
E5: =Const!E15 -> Base year (year commencing) | F5: =Const!F15 -> 2017-07-01 | G5: =Const!G15 -> date | K5: =DATE(YEAR($F5)+K6,MONTH($F5),DAY($F5)) -> 2017-07-01 | L5: =DATE(YEAR($F5)+L6,MONTH($F5),DAY($F5)) -> 2018-07-01 | M5: 2019-07-01 | N5: 2020-07-01 | O5: 2021-07-01 | P5: 2022-07-01 | Q5: 2023-07-01 | R5: 2024-07-01 | S5: 2025-07-01 | T5: 2026-07-01 | U5: 2027-07-01 | V5: 2028-07-01 | W5: 2029-07-01 | X5: 2030-07-01 | Y5: 2031-07-01 | Z5: 2032-07-01 | AA5: 2033-07-01 | AB5: 2034-07-01 | AC5: 2035-07-01 | AD5: 2036-07-01 | AE5: 2037-07-01 | AF5: 2038-07-01 | AG5: 2039-07-01 | AH5: 2040-07-01 | AI5: 2041-07-01 | AJ5: 2042-07-01 | AK5: 2043-07-01 | AL5: 2044-07-01 | AM5: 2045-07-01 | AN5: 2046-07-01 | AO5: 2047-07-01 | AP5: 2048-07-01
E6: Period number | K6: 0 | L6: =K6+1 -> 1 | M6: =L6+1 -> 2 | N6: 3 | O6: 4 | P6: 5 | Q6: 6 | R6: 7 | S6: 8 | T6: 9 | U6: 10 | V6: 11 | W6: 12 | X6: 13 | Y6: 14 | Z6: 15 | AA6: 16 | AB6: 17 | AC6: 18 | AD6: 19 | AE6: 20 | AF6: 21 | AG6: 22 | AH6: 23 | AI6: 24 | AJ6: 25 | AK6: 26 | AL6: 27 | AM6: 28 | AN6: 29 | AO6: 30 | AP6: 31
E7: =Const!E16 -> Valuation period | F7: =Const!F16 -> 30 | G7: =Const!G16 -> years | K7: =IF(K6<=$F$7,1,0) -> 1 | L7: =IF(L6<=$F$7,1,0) -> 1 | M7: 1 | N7: 1 | O7: 1 | P7: 1 | Q7: 1 | R7: 1 | S7: 1 | T7: 1 | U7: 1 | V7: 1 | W7: 1 | X7: 1 | Y7: 1 | Z7: 1 | AA7: 1 | AB7: 1 | AC7: 1 | AD7: 1 | AE7: 1 | AF7: 1 | AG7: 1 | AH7: 1 | AI7: 1 | AJ7: 1 | AK7: 1 | AL7: 1 | AM7: 1 | AN7: 1 | AO7: 1 | AP7: 0
E8: =Const!E17 -> discount rate | F8: =Const!F17 -> 0.0624 | G8: =Const!G17 -> % | K8: =(1/(1+$F$8)^(K6))*K7 -> 1 | L8: =(1/(1+$F$8)^(L6))*L7 -> 0.9412650602 | M8: 0.8859799136 | N8: 0.8339419368 | O8: 0.7849604074 | P8: 0.7388558051 | Q8: 0.6954591539 | R8: 0.6546114024 | S8: 0.6161628411 | T8: 0.5799725538 | U8: 0.5459079008 | V8: 0.5138440331 | W8: 0.4836634348 | X8: 0.4552554921 | Y8: 0.4285160882 | Z8: 0.4033472215 | AA8: 0.3796566468 | AB8: 0.3573575365 | AC8: 0.3363681631 | AD8: 0.3166115993 | AE8: 0.2980154361 | AF8: 0.2805115174 | AG8: 0.2640356903 | AH8: 0.24852757 | AI8: 0.2339303181 | AJ8: 0.220190435 | AK8: 0.207257563 | AL8: 0.1950843026 | AM8: 0.1836260378 | AN8: 0.1728407735 | AO8: 0.1626889811 | AP8: 0
E10: Description | F10: Constant | G10: Unit | H10: Comment | I10: Total
B14: Option 1 - Replace ZSS with greenfield construction
C16: Replacement year of transfomers based on E@R
E17: Remediation year | F17: =Scenarios!B10 -> 2021 | G17: year
E18: Remediation 'in-service' flag
D20: Expenditure schedule
E21: Transformer replacement cost | G21: $'M AUD 2018
E22: =Const!$E$52 -> Year 0 | F22: =Const!$F$52 -> 0
E23: =Const!$E$53 -> Year -1 | F23: =Const!$F$53 -> 0
E24: =Const!$E$54 -> Year -2 | F24: =Const!$F$54 -> 0
D26: Substaiton operational expenditure
E27: Opex flag
E28: Transformer opex - current
E29: Transformer opex - post replacement
E30: Swichboard opex - current
E31: Swichboard opex - post replacement
E33: Total (NPC of project) | G33: A$m FY17 Real
B36: Option 2 - AER solution plus future switchboard replacement
C38: Replacement year of transfomers based on E@R
E39: Remediation year | F39: =Scenarios!B5 -> 2021 | G39: year
E40: Remediation 'in-service' flag
D42: Expenditure schedule
E43: Transformer replacement cost | G43: $'M AUD 2018
E44: =Const!$E$52 -> Year 0 | F44: =Const!$F$52 -> 0
E45: =Const!$E$53 -> Year -1 | F45: =Const!$F$53 -> 0
E46: =Const!$E$54 -> Year -2 | F46: =Const!$F$54 -> 0
C48: Replacement year of switchboard based on engineering assessment
E49: Remediation year | F49: =Scenarios!B11 -> 2023 | G49: year
E50: Remediation 'in-service' flag
D52: Expenditure schedule
E53: recoverable protection and control asset value (relay value, loss of labour and control wiring)
E54: depreciated value
E55: switchboard replacement cost | G55: $'M AUD 2018
E56: =Const!$E$52 -> Year 0 | F56: =Const!$F$52 -> 0
E57: =Const!$E$53 -> Year -1 | F57: =Const!$F$53 -> 0
E58: depresiated value | F58: 1
D60: Substaiton operational expenditure
E61: Transformer opex flag
E62: Transformer opex - current
E63: Transformer opex - post replacement
E65: Switchboard opex flag
E66: Swichboard opex - current
E67: Swichboard opex - post replacement
E69: Total (NPC of project) | G69: A$m FY17 Real
B74: END

Sheet Scenarios
A1: Scenario analysis on replacement timing
A2: Variables
A4: Option 1 variables
A5: TF replacement year | B5: 2021
A6: TF replacement cost
A9: Option 2 variables
A10: TF replacement year | B10: 2021
A11: SB Replacement year | B11: 2023
A12: TF replacement cost
A13: 11kV switchboard capex
A15: Scenario's run based on Options - Option 1
B17: Replacement year of Switchboard (vertical) impact on NPC
A19: 11kV Switchboard replacement year | B19: 2023
B20: 2024
B21: 2025
B22: 2026
B23: 2027
B24: 2028
B25: 2029
B26: 2030
B27: 2031
B28: 2032
B29: 2033
B30: 2034
B31: 2035
B32: 2036
B33: 2037
B34: 2038
B35: 2039
B36: 2040
A39: The table below shows it is only more cost effective to do a partial brown field replacement followed by switchboard replacement if the switchboard is replacedafter 2038 based on the expected costs
A40: Option 1 NPV
C42: Switchboard replacemnt capex ($'M)
B43: ='Options - Scenario'!I69 -> 0 | C43: 4 | D43: =C43+0.5 -> 4.5 | E43: =D43+0.5 -> 5 | F43: 5.5 | G43: 6 | H43: 6.5 | I43: 7 | J43: 7.5 | K43: 8 | L43: 8.5 | M43: 9
A44: 11kV Switchboard replacement year | B44: 2023
B45: 2024
B46: 2025
B47: 2026
B48: 2027
B49: 2028
B50: 2029
B51: 2030
B52: 2031
B53: 2032
B54: 2033
B55: 2034
B56: 2035
B57: 2036
B58: 2037
B59: 2038
B60: 2039
B61: 2040
B72: END

Sheet Inputs
C13: Inputs

Sheet Const
B2: =RIGHT(CELL("filename", B2), LEN(CELL("filename", B2)) - SEARCH("]", CELL("filename", B2))) -> Const
E7: Active scenario | F7: 1 | K7: =MATCH($F7,$L$7:$N$7,0) -> 2 | M7: 1
E8: Comparison scenario | F8: 1 | K8: =MATCH($F8,$L$7:$N$7,0) -> 2
E9: Total comparison column differences | K9: =SUM(K12:K62) -> 0 | M9: Base case
E11: Description | F11: Constant | G11: Unit | H11: Comment
A12: start range
C14: Financial data
E15: Base year (year commencing) | F15: =INDEX($L15:$N15,$K$7) -> 2017-07-01 | G15: date | K15: =IFERROR(IF(ABS(F15 - INDEX(L15:N15,$K$8)) < 0.001, 0, 1),0) -> 0 | M15: 2017-07-01
E16: Valuation period | F16: =INDEX($L16:$N16,$K$7) -> 30 | G16: years | K16: 0 | M16: 30
E17: discount rate | F17: =INDEX($L17:$N17,$K$7) -> 0.0624 | G17: % | K17: 0 | M17: 0.0624
K18: 0
C19: Value of customer reliability | K19: 0
E20: ASP | F20: =INDEX($L20:$N20,$K$7) -> 0.019 | G20: $m per MWh | H20: 2014 AEMO study ($33.46 per kWh for network average VCR) escalated to 2018 dollars | K20: 0 | M20: 0.019
E21: TC | F21: =INDEX($L21:$N21,$K$7) -> 0.019 | G21: $m per MWh | H21: 2014 AEMO study ($33.46 per kWh for network average VCR) escalated to 2018 dollars | K21: 0 | M21: 0.019
E22: KTH | F22: =INDEX($L22:$N22,$K$7) -> 0.029 | G22: $m per MWh | H22: 2014 AEMO study ($33.46 per kWh for network average VCR) escalated to 2018 dollars | K22: 0 | M22: 0.029
E23: DRW | F23: =INDEX($L23:$N23,$K$7) -> 0.039 | G23: $m per MWh | H23: 2014 AEMO study ($33.46 per kWh for network average VCR) escalated to 2018 dollars | K23: 0 | M23: 0.039
E24: Average | F24: =INDEX($L24:$N24,$K$7) -> 0.0265 | G24: $m per MWh | H24: Estimate | K24: 0 | M24: =AVERAGE(M20:M23) -> 0.0265
K25: 0
C26: Outage duration | K26: 0
E27: Transformer outage duration as percentage of year | F27: =INDEX($L27:$N27,$K$7) -> 1 | G27: % | H27: not used | K27: 0 | M27: 1
K28: 0
C29: Weibull Parameters | K29: 0
E30: Weibull shape factor | F30: 0 | G30: factors | H30: Estimated | K30: 0 | M30: 0
E31: Weibull scale (mean life) | F31: =INDEX($L31:$N31,$K$7) -> 51.66777231 | G31: years | H31: Calculated | K31: 0 | M31: =M42*M40+M41 -> 51.66777231
K32: 0
C33: Perks Formula Parameters | H33: Source: in house data | K33: 0
E34: A | F34: =INDEX($L34:$N34,$K$7) -> 0.005 | G34: factor | K34: 0 | M34: 0.005
E35: b | F35: =INDEX($L35:$N35,$K$7) -> 0.169 | G35: factor | K35: 0 | M35: 0.169
E36: a | F36: =INDEX($L36:$N36,$K$7) -> 0.0002001 | G36: factor | K36: 0 | M36: 0.0002001
E37: µ | F37: =INDEX($L37:$N37,$K$7) -> 0.0002 | G37: factor | K37: 0 | M37: 0.0002
K38: 0
C39: DP Analysis | H39: Source: Tx DP Analysis and Characteristics.xlsx | K39: 0
E40: m | F40: =INDEX($L40:$N40,$K$7) -> -0.04427884868 | G40: factor | K40: 0 | M40: -0.04427884868
E41: c | F41: =INDEX($L41:$N41,$K$7) -> 60.52354205 | G41: factor | K41: 0 | M41: 60.52354205
E42: End of Life DP Value | F42: =INDEX($L42:$N42,$K$7) -> 200 | G42: factor | K42: 0 | M42: 200
E43: New Transformer DP | F43: =INDEX($L43:$N43,$K$7) -> 1200 | G43: factor | K43: 0 | M43: 1200
K44: 0
C45: Restoration parameters | K45: 0
E46: Restuaration time N-1 | F46: =INDEX($L46:$N46,$K$7) -> 1 | G46: months | K46: 0 | M46: 1
E47: Restuaration time N-2 | F47: =INDEX($L47:$N47,$K$7) -> 2 | G47: months | K47: 0 | M47: 2
E48: Restoration cost | F48: =INDEX($L48:$N48,$K$7) -> 0.001 | G48: $'m/MVAh | K48: 0 | M48: 0.001
K49: 0
K50: 0
C51: Expenditure S-Curve | K51: 0
E52: Year 0 | K52: 0
E53: Year -1 | K53: 0
E54: Year -2 | K54: 0
K55: =IFERROR(IF(ABS(F55 - INDEX(L55:N55,$K$8)) < 0.001, 0, 1),0) -> 0
C56: Annual opex costs | K56: 0
E57: Transformer opex - current | G57: $AUD 2017 | K57: 0
E58: Transformer opex - post replacement | G58: $AUD 2017 | K58: 0
E59: Swichboard opex - current | G59: $AUD 2017 | K59: 0
E60: Swichboard opex - post replacement | G60: $AUD 2017 | K60: =IFERROR(IF(ABS(F60 - INDEX(L60:N60,$K$8)) < 0.001, 0, 1),0) -> 0
K61: =IFERROR(IF(ABS(F61 - INDEX(L61:N61,$K$8)) < 0.001, 0, 1),0) -> 0
A62: end range

Sheet Opex costs
A1: Historical opex analysis
A3: TF | B3: denotes assets replaced as part of the transformer replacement
A4: SB | B4: denotes assets replaced as part of the switchboard replacement
A6: Berrimah actual costs
A7: Split | B7: Asset Class | C7: Sum of 2013/2014 | D7: Sum of 2014/2015 | E7: Sum of 2015/2016 | F7: Sum of 2016/2017 | G7: Average
A8: SB | B8: Buildings
A9: SB | B9: Cables
A10: TF | B10: Capacitor Banks
A11: TF | B11: Civil and Grounds
A12: SB | B12: Communications
A13: TF | B13: Customer
A14: SB | B14: Fire Systems
A15: TF | B15: GIS
A16: SB | B16: 11kV CBs
A17: TF | B17: 66kV CBs
A18: SB | B18: HV Switchboards
A19: SB | B19: Instrument Transformers
A20: SB | B20: Multiple
A21: TF | B21: Outdoor Disconnectors and Busbars
A22: TF | B22: Power Transformers
A23: SB | B23: Protection
A24: SB | B24: SCADA
A25: SB | B25: Substation Auxiliary Plant
A26: TF | B26: Surge Arrestors
A27: SB | B27: Unknown
B28: Grand Total
B30: TF
B31: SB
A35: Opex for new substations of similar size
B36: Asset Class | C36: Sum of 2013/2014 | D36: Sum of 2014/2015 | E36: Sum of 2015/2016 | F36: Sum of 2016/2017 | G36: Average
A37: SB | B37: Buildings
A38: SB | B38: Cable Tunnels
A39: TF | B39: Cables
A40: TF | B40: Capacitor Banks
A41: TF | B41: Civil and Grounds
A42: SB | B42: Communications
A43: SB | B43: Distribution Substations
A44: SB | B44: Distribution Switchgear
A45: TF | B45: Easements
A46: SB | B46: Fire Systems
A47: TF | B47: HV Circuit Breakers
A48: SB | B48: HV Switchboards
A49: SB | B49: Instrument Transformers
A50: TF | B50: Multiple
A51: TF | B51: Outdoor Disconnectors and Busbars
A52: TF | B52: Poletops
A53: TF | B53: Power Transformers
A54: SB | B54: Protection
A55: SB | B55: SCADA
A56: SB | B56: Substation Auxiliary Plant
A57: SB | B57: Unknown
B58: Grand Total
B60: TF
B61: SB

Sheet Capex - Option 1
B1: Option 1
B2: Greenfield replacement 38MVA
A4: Item | B4: Estimated Cost $’000 (P50)
A5: Design
A6: Functional/Concept
A7: Detailed
A8: Geotechnical
A9: Direct Costs
A10: Civil Works + Control Building
A11: 11kV control building
A12: 66kV Switchyard
A13: 11kV switchboard
A14: 66kV Protection Systems
A15: 11kV Protection Systems
A16: 66/11kV Power Transformers
A17: Auxiliary Systems
A18: RTU and Comms
A19: Cables
A20: Remote End Works
A21: Statutory Approvals
A22: Land Purchase
A23: Landscaping and Site Rehabilitation
A24: Spares
A25: Project Management
A26: External
A27: PWC
A28: Other PWC Costs
A29: Scada and Communications
A30: Testing and Commissioning
A34: PWC - add cost back to AER | B34: Expenditure | C34: Comments
A35: Item 1 | C35: allowance for larger transformer, cables, CBs etc
A36: Item 2
A37: Total
A39: Revised targeted brownfield cost
A41: Amount spent to 2019 (Budget)
A43: Total cost forOptions analysis
A45: End

Sheet Capex - Option 2
B1: Option 2 | C1: Option 3
B2: AER Option - targeted brown field | C2: Brownfield now, 11kV switchboard later
A4: Item | B4: Estimated Cost $’000 (P50) | C4: Estimated Cost $’000 (P50)
A5: Design
A6: Functional/Concept
A7: Detailed
A8: Geotechnical
A9: Direct Costs
A10: Civil Works + Control Building
A11: 11kV control building
A12: 66kV Switchyard
A13: 11kV switchboard
A14: 66kV Protection Systems
A15: 11kV Protection Systems
A16: 66/11kV Power Transformers
A17: Auxiliary Systems
A18: RTU and Comms
A19: Cables
A20: Remote End Works
A21: Statutory Approvals
A22: Land Purchase
A23: Landscaping and Site Rehabilitation
A24: Spares
A25: Project Management
A26: External
A27: PWC
A28: Other PWC Costs
A29: Scada and Communications
A30: Testing and Commissioning
A34: AER Analysis | B34: Expenditure | C34: Comments
A35: Step #1 | C35: Removed the amount forecast for expenditure in the 14-19 period.
A36: Step #2 | C36: Removed Civil Works and Building Structures as per the CAR
A37: Step #3 | C37: Removed the provision for bus 1 and bus 2 in the 11 kV Switchboard as per the CAR
A38: Step #3 | C38: Included an amount for spare transformer given the non-standard size of the Berrimah transformer
A40: PWC - add cost back to AER
A41: Item 1 | C41: Allowance for TF bunding and fire walls
A42: Item 2 | C42: Decommissioning and reinstatement of civil works
A43: Item 3 | C43: Increased labour for brownfield construction
A44: Item 4 | C44: Sunk costs
A45: Item 5 | C45: Reduction of allowance for spare transformer
A46: Total
A48: Revised targeted brownfield cost
A50: Amount spent to 2019 (Budget)
A52: Total cost for Options analysis
A54: End
